bitfinex/quotes_SOLUSD_20260208
["timestamp","ask_amount","ask_price","bid_price","bid_amount"]
[1770539611442,4.15824864,88.479,88.447,11.30612996]
[1770539611646,18.04198575,88.49,88.45,18.04198575]
[1770539611858,18.04198575,88.49,88.456,11.30498628]
[1770539612163,18.04198575,88.48,88.44,18.04198575]
[1770539612470,168.13032502,88.541,88.423,56.5461746]
[1770539612471,4.15824864,88.505,88.47,18.04198575]
[1770539612845,22.20023439,88.52,88.48,18.04198575]
[1770539613266,11.29580994,88.529,88.49,18.04198575]
[1770539613449,4.15824864,88.548,88.51,18.04198575]
[1770539613763,4.15824864,88.548,88.52,18.04198575]
[1770539613965,18.04198575,88.54,88.5,18.04198575]
[1770539614267,18.04198575,88.55,88.51,18.04198575]
[1770539614561,4.15824864,88.562,88.52,18.04198575]
[1770539614761,18.04198575,88.56,88.52,18.04198575]
[1770539614966,18.04198575,88.55,88.513,4.08364055]
[1770539615165,4.15824864,88.572,88.53,18.04198575]
[1770539615367,4.15824864,88.601,88.55,18.04198575]
[1770539615552,18.04198575,88.59,88.551,4.08364055]
[1770539615755,22.20023439,88.6,88.56,18.04198575]
[1770539615946,22.20023439,88.6,88.514,5.13032502]
[1770539615947,18.04198575,88.58,88.54,18.04198575]
[1770539616152,18.04198575,88.57,88.537,4.47834198]
[1770539616450,11.28948497,88.578,88.54,18.04198575]
[1770539616649,11.28948497,88.578,88.54,22.52032773]
[1770539617273,11.28948497,88.578,88.538,11.29458537]
[1770539617571,18.04198575,88.57,88.533,11.29518774]
[1770539617755,18.04198575,88.57,88.53,18.04198575]
[1770539617756,18.04198575,88.57,88.538,11.29458537]
[1770539618367,11.29190709,88.559,88.516,11.29733203]
[1770539618553,18.04198575,88.56,88.52,22.52032773]
[1770539618750,18.04198575,88.54,88.5,18.04198575]
[1770539619061,18.04198575,88.52,88.48,18.04198575]
[1770539619369,18.04198575,88.55,88.458,4.47834198]
[1770539619570,18.04198575,88.51,88.465,4.47834198]
[1770539619768,18.04198575,88.48,88.452,4.47834198]
[1770539620071,18.04198575,88.48,88.397,56.29523552]
[1770539620072,18.04198575,88.51,88.47,18.04198575]
[1770539620264,4.21304414,88.53,88.471,4.47834198]
[1770539620466,4.21304414,88.596,88.522,4.47834198]
[1770539620647,4.21304414,88.596,88.521,39.53864054]
[1770539620648,0.2663551,88.603,88.561,4.47834198]
[1770539620849,0.2663551,88.603,88.57,18.04198575]
[1770539621050,0.2663551,88.603,88.561,4.47834198]
[1770539621270,0.2663551,88.603,88.57,18.04198575]
[1770539621482,5.8982908,88.646,88.521,96.02241275]
[1770539621483,18.04198575,88.63,88.581,4.47834198]
[1770539621770,18.14198575,88.64,88.6,18.04198575]
[1770539621971,0.1,88.64,88.61,18.04198575]
[1770539622155,0.1,88.64,88.574,5.13032502]
[1770539622156,0.1,88.64,88.609,4.47834198]
[1770539622365,1e-08,88.656,88.631,4.47834198]
[1770539622561,11.27395715,88.7,88.651,4.47834198]
[1770539622753,18.04198575,88.66,88.625,11.28345723]
[1770539623069,18.04198575,88.66,88.624,11.28349997]
[1770539623260,39.45885004,88.7,88.622,11.28378024]
[1770539623450,18.04198575,88.64,88.6,18.04198575]
[1770539623651,18.04198575,88.65,88.61,18.04198575]
[1770539623868,18.04198575,88.65,88.61,29.3273717]
[1770539624170,4.21304414,88.65,88.609,11.28544084]
[1770539624374,4.21304414,88.677,88.62,18.04198575]
[1770539624668,4.21304414,88.677,88.556,45.16866121]
[1770539624669,18.04198575,88.67,88.63,18.04198575]
[1770539624870,18.04198575,88.66,88.62,18.04198575]
[1770539625089,4.21304414,88.629,88.576,4.47834198]
[1770539625368,84.5766658,88.677,88.57,18.04198575]
[1770539625369,4.21304414,88.619,88.57,18.04198575]
[1770539625762,18.04198575,88.61,88.57,18.04198575]
[1770539625968,18.04198575,88.6,88.556,11.29221961]
[1770539626270,22.25502989,88.59,88.546,4.47834198]
[1770539626483,11.29203459,88.558,88.517,4.47834198]
[1770539626663,11.29203459,88.558,88.446,45.22508766]
[1770539626664,4.21304414,88.529,88.48,18.04198575]
[1770539626858,18.04198575,88.51,88.477,4.47834198]
[1770539627050,4.21304414,88.509,88.463,4.47834198]
[1770539627256,4.21304414,88.489,88.45,18.04198575]
[1770539627468,4.21304414,88.517,88.464,4.47834198]
[1770539627688,18.04198575,88.5,88.464,4.47834198]
[1770539627856,18.04198575,88.48,88.44,0.2]
[1770539628054,18.04198575,88.45,88.44,1e-08]
[1770539628252,4.21304414,88.449,88.39,18.48823839]
[1770539628476,11.30978635,88.419,88.39,0.44625264]
[1770539628657,18.04198575,88.41,88.39,0.44625264]
[1770539628853,4.21304414,88.442,88.381,4.47834198]
[1770539629162,18.04198575,88.45,88.41,18.04198575]
[1770539629365,18.04198575,88.42,88.39,18.04198575]
[1770539629663,18.04198575,88.42,88.38,18.04198575]
[1770539629858,4.21304414,88.43,88.4,18.04198575]
[1770539630063,18.04198575,88.43,88.39,18.04198575]
[1770539630259,56.50488612,88.488,88.4,18.04198575]
[1770539630460,18.04198575,88.45,88.41,18.04198575]
[1770539630658,18.04198575,88.45,88.069,61.2]
[1770539630659,11.30467222,88.459,88.43,18.04198575]
[1770539630864,18.04198575,88.45,88.41,18.04198575]
[1770539631160,18.04198575,88.44,88.406,4.47834198]
[1770539631479,11.30467222,88.459,88.42,18.04198575]
[1770539631669,11.30391858,88.465,88.43,22.52032773]
[1770539631859,18.04198575,88.46,88.42,18.04198575]
[1770539632060,18.04198575,88.46,88.43,18.04198575]
[1770539632275,11.30109507,88.487,88.44,18.04198575]
[1770539632575,18.04198575,88.47,88.431,4.47834198]
[1770539632878,11.30211688,88.479,88.44,18.04198575]
[1770539633181,86.40198575,88.48,88.441,11.30697301]
[1770539633490,11.29752019,88.515,88.471,4.47834198]
[1770539633659,18.04198575,88.52,88.48,22.52032773]
[1770539633987,11.29369247,88.545,88.51,18.04198575]
[1770539634365,18.04198575,88.57,88.53,18.04198575]
[1770539634564,4.21304414,88.549,88.5,18.04198575]
[1770539634763,18.04198575,88.54,88.5,18.04198575]
[1770539635286,18.04198575,88.54,88.501,4.47834198]
[1770539635587,95.97037337,88.569,88.49,18.04198575]
[1770539635588,18.04198575,88.53,88.49,18.04198575]
[1770539635959,95.97037337,88.569,88.5,18.04198575]
[1770539635960,18.04198575,88.54,88.5,18.04198575]
[1770539636160,18.04198575,88.55,88.51,18.04198575]
[1770539636371,18.04198575,88.54,88.497,4.47834198]
[1770539636557,4.21304414,88.553,88.497,4.47834198]
[1770539636761,56.45316081,88.569,88.498,15.77803236]
[1770539636762,22.25502989,88.55,88.498,15.77803236]
[1770539636962,22.25502989,88.55,88.51,18.04198575]
[1770539637163,4.21304414,88.55,88.52,18.04198575]
[1770539637363,22.25502989,88.55,88.51,18.04198575]
[1770539637588,4.21304414,88.55,88.51,18.04198575]
[1770539637971,11.29206032,88.558,88.52,18.04198575]
[1770539638164,15.50433819,88.564,88.53,18.04198575]
[1770539638362,11.29055198,88.57,88.531,4.47834198]
[1770539638580,11.29055198,88.57,88.497,39.54925828]
[1770539638581,11.29190709,88.559,88.52,18.04198575]
[1770539638761,11.29190709,88.559,88.52,23.44596253]
[1770539639194,23.44596253,88.55,88.515,4.47834198]
[1770539639366,11.29190709,88.559,88.52,23.44596253]
[1770539639986,4.21304414,88.628,88.551,4.47834198]
[1770539640186,4.21304414,88.611,88.551,4.47834198]
[1770539640362,23.44596253,88.59,88.551,4.47834198]
[1770539640569,23.44596253,88.58,88.54,23.44596253]
[1770539641078,23.44596253,88.57,88.536,4.47834198]
[1770539641685,23.44596253,88.57,88.53,23.44596253]
[1770539641873,23.44596253,88.56,88.521,4.47834198]
[1770539642370,23.44596253,88.58,88.54,23.44596253]
[1770539642575,11.28935752,88.579,88.543,11.29389354]
[1770539642776,4.21304414,88.599,88.55,23.44596253]
[1770539643091,23.44596253,88.58,88.542,4.47834198]
[1770539643395,23.44596253,88.58,88.54,23.44596253]
[1770539643765,11.2841345,88.62,88.543,4.47834198]
[1770539643965,23.44596253,88.61,88.57,23.44596253]
[1770539644773,11.28553532,88.609,88.57,23.44596253]
[1770539645083,23.44596253,88.6,88.56,23.44596253]
[1770539645285,4.21304414,88.599,88.56,23.44596253]
[1770539645486,4.21304414,88.599,88.57,23.44596253]
[1770539645788,23.44596253,88.6,88.56,23.44596253]
[1770539646864,11.2868091,88.599,88.56,23.44596253]
[1770539647065,39.50383186,88.599,88.56,23.44596253]
[1770539647269,4.09964576,88.608,88.57,23.44596253]
[1770539647580,11.28592605,88.606,88.57,23.44596253]
[1770539647763,56.41279699,88.633,88.562,4.31947222]
[1770539647764,68.36,88.644,88.562,4.31947222]
[1770539647969,11.28109261,88.644,88.62,23.44596253]
[1770539648266,56.38512621,88.676,88.591,4.31947222]
[1770539648267,11.28311594,88.628,88.591,4.31947222]
[1770539648681,4.09964576,88.658,88.564,5.13032502]
[1770539648882,11.28006406,88.652,88.62,23.44596253]
[1770539649085,11.28072536,88.647,88.61,23.44596253]
[1770539649389,23.44596253,88.68,88.622,4.31947222]
[1770539649688,11.27510119,88.691,88.65,23.44596253]
[1770539649689,27.54560829,88.69,88.65,23.44596253]
[1770539649897,11.27434971,88.697,88.661,4.31947222]
[1770539650082,23.44596253,88.69,88.65,23.44596253]
[1770539650274,23.54596253,88.7,88.661,4.31947222]
[1770539650575,23.44596253,88.69,88.65,23.44596253]
[1770539650778,0.1,88.7,88.671,4.31947222]
[1770539650982,0.1,88.7,88.69,23.44596253]
[1770539651165,0.1,88.7,88.681,11.27637261]
[1770539651166,4.09964576,88.744,88.681,4.31947222]
[1770539651369,4.09964576,88.744,88.701,4.31947222]
[1770539651867,4.09964576,88.744,88.686,4.31947222]
[1770539652078,23.44596253,88.75,88.701,4.31947222]
[1770539652283,4.09964576,88.749,88.701,4.31947222]
[1770539652485,23.44596253,88.74,88.701,4.31947222]
[1770539652672,23.44596253,88.73,88.69,23.44596253]
[1770539652871,23.44596253,88.73,88.65,5.13032502]
[1770539652872,4.09964576,88.709,88.662,11.2787258]
[1770539653069,23.44596253,88.7,88.656,11.27954798]
[1770539653291,23.44596253,88.69,88.66,23.44596253]
[1770539653479,23.44596253,88.69,88.65,23.44596253]
[1770539653664,39.45529151,88.708,88.651,4.31947222]
[1770539653870,4.09964576,88.715,88.67,23.44596253]
[1770539654084,4.09964576,88.715,88.68,23.44596253]
[1770539654276,4.09964576,88.715,88.67,27.77428326]
[1770539654587,23.44596253,88.72,88.68,23.44596253]
[1770539654785,23.44596253,88.72,88.624,5.13032502]
[1770539654786,23.44596253,88.69,88.65,23.44596253]
[1770539655088,23.44596253,88.67,88.615,4.32832073]
[1770539655290,4.27771319,88.629,88.571,4.32832073]
[1770539655474,23.44596253,88.62,88.58,23.44596253]
[1770539655673,27.72367572,88.62,88.58,23.44596253]
[1770539655899,23.44596253,88.61,88.571,4.32832073]
[1770539656072,231.14478681,88.689,88.6,23.44596253]
[1770539656073,27.72367572,88.65,88.6,23.44596253]
[1770539656387,23.44596253,88.64,88.601,11.28655432]
[1770539656596,23.44596253,88.65,88.61,23.44596253]
[1770539656894,23.44596253,88.63,88.59,23.44596253]
[1770539657074,23.44596253,88.61,88.57,23.44596253]
[1770539657701,4.27771319,88.695,88.59,23.44596253]
[1770539657905,23.44596253,88.62,88.582,15.61729591]
[1770539658106,4.27771319,88.635,88.59,23.44596253]
[1770539658387,23.44596253,88.61,88.57,23.44596253]
[1770539658588,23.44596253,88.61,88.572,4.32832073]
[1770539658791,4.27771319,88.649,88.601,4.32832073]
[1770539659084,67.54795585,88.826,88.641,4.32832073]
[1770539659085,4.27771319,88.709,88.641,4.32832073]
[1770539659290,23.44596253,88.71,88.671,4.32832073]
[1770539659477,4.27771319,88.731,88.681,4.32832073]
[1770539659671,23.44596253,88.73,88.69,23.44596253]
[1770539659871,4.27771319,88.747,88.691,4.32832073]
[1770539660084,23.44596253,88.74,88.7,23.44596253]
[1770539660491,23.44596253,88.74,88.691,4.32832073]
[1770539660678,23.44596253,88.74,88.7,23.44596253]
[1770539660876,39.43173239,88.761,88.691,4.32832073]
[1770539661078,15.5441763,88.759,88.703,4.32832073]
[1770539661282,11.26646311,88.759,88.72,23.44596253]
[1770539661488,11.26568342,88.766,88.73,27.77428326]
[1770539661686,4.27771319,88.808,88.761,4.32832073]
[1770539661993,4.27771319,88.808,88.76,23.44596253]
[1770539661994,11.26289462,88.788,88.76,23.44596253]
[1770539662199,45.01260738,88.864,88.692,84.56230549]
[1770539662200,4.27771319,88.769,88.714,4.32832073]
[1770539662393,11.53084704,88.775,88.721,4.32832073]
[1770539662586,11.26455944,88.774,88.73,23.44596253]
[1770539662895,11.26455944,88.774,88.74,23.44596253]
[1770539663195,11.260435,88.807,88.761,4.32832073]
[1770539663417,11.260435,88.807,88.741,11.26874838]
[1770539663418,23.44596253,88.79,88.751,4.32832073]
[1770539663597,4.27771319,88.806,88.76,23.44596253]
[1770539663779,23.44596253,88.81,88.77,23.44596253]
[1770539663979,23.44596253,88.8,88.761,4.32832073]
[1770539664301,11.25353079,88.861,88.791,4.32832073]
[1770539664486,11.25353079,88.861,88.77,23.44596253]
[1770539664487,5.88478656,88.883,88.841,4.32832073]
[1770539664677,5.88478656,88.883,88.863,4.32832073]
[1770539664878,1.24419015,88.893,88.862,5.88414679]
[1770539665184,10.0,88.9,88.811,11.25981484]
[1770539665185,23.44596253,88.87,88.811,11.25981484]
[1770539665374,4.5,88.87,88.795,28.15466861]
[1770539665579,23.28743003,88.85,88.799,11.2612706]
[1770539665793,5.13032502,88.871,88.78,23.28743003]
[1770539665985,5.13032502,88.893,88.782,0.5]
[1770539666293,23.28743003,88.88,88.772,11.2647709]
[1770539666499,23.28743003,88.82,88.78,23.28743003]
[1770539666689,23.28743003,88.85,88.775,0.5]
[1770539666894,28.12290616,88.896,88.81,23.28743003]
[1770539667083,23.28743003,88.82,88.776,11.26430566]
[1770539667282,23.28743003,88.82,88.77,23.28743003]
[1770539667477,4.27771319,88.822,88.78,23.28743003]
[1770539667678,23.28743003,88.81,88.77,23.28743003]
[1770539667886,4.27771319,88.819,88.78,23.28743003]
[1770539668403,4.27771319,88.789,88.731,11.27001482]
[1770539668575,23.28743003,88.78,88.74,23.28743003]
[1770539668776,4.27771319,88.779,88.74,23.28743003]
[1770539669094,4.27771319,88.779,88.75,23.28743003]
[1770539669484,11.26311375,88.786,88.739,51.90899072]
[1770539669485,4.27771319,88.777,88.739,40.64]
[1770539669709,27.56514322,88.77,88.715,0.5]
[1770539669902,4.27771319,88.77,88.733,11.26970626]
[1770539670215,11.2620715,88.794,88.76,23.28743003]
[1770539670390,4.27771319,88.83,88.78,23.28743003]
[1770539670594,4.27771319,88.83,88.739,39.44143382]
[1770539670595,4.27771319,88.839,88.773,0.5]
[1770539670795,129.38939455,88.879,88.78,23.28743003]
[1770539670796,23.28743003,88.82,88.78,23.28743003]
[1770539671403,23.28743003,88.81,88.773,0.5]
[1770539671605,23.28743003,88.83,88.79,23.28743003]
[1770539672220,11.25704577,88.834,88.8,23.28743003]
[1770539672421,4.27771319,88.819,88.763,28.16476613]
[1770539672716,4.27771319,88.847,88.81,23.28743003]
[1770539672918,4.27771319,88.847,88.784,0.5]
[1770539672919,4.27771319,88.839,88.8,23.28743003]
[1770539673116,23.28743003,88.83,88.79,23.28743003]
[1770539673432,23.28743003,88.83,88.785,11.26316382]
[1770539673433,4.27771319,88.829,88.8,23.28743003]
[1770539673605,4.27771319,88.846,88.81,23.28743003]
[1770539673797,39.38381212,88.869,88.82,23.28743003]
[1770539673798,23.28743003,88.86,88.82,23.28743003]
[1770539674096,4.27771319,88.888,88.85,23.28743003]
[1770539674305,23.28743003,88.86,88.807,0.48440987]
[1770539674507,23.28743003,88.85,88.81,23.28743003]
[1770539674709,4.27771319,88.859,88.807,0.48440987]
[1770539674905,4.27771319,88.859,88.791,0.48440987]
[1770539675112,11.25327751,88.863,88.793,0.48440987]
[1770539675314,23.28743003,88.85,88.81,23.28743003]
[1770539675514,4.27771319,88.859,88.82,23.28743003]
[1770539675820,23.28743003,88.86,88.792,39.41796558]
[1770539675821,23.28743003,88.86,88.809,0.39195535]
[1770539676198,4.26299759,88.859,88.81,23.28743003]
[1770539676497,4.26299759,88.819,88.78,23.28743003]
[1770539676702,4.26299759,88.819,88.718,50.4471704]
[1770539676703,4.26299759,88.839,88.792,11.26227588]
[1770539676916,4.26299759,88.839,88.8,23.28743003]
[1770539677214,4.26299759,88.839,88.8,34.54866678]
[1770539677599,4.26299759,88.869,88.82,23.28743003]
[1770539678007,23.28743003,88.86,88.82,23.28743003]
[1770539678529,23.28743003,88.84,88.794,11.26191524]
[1770539678705,23.28743003,88.84,88.8,23.28743003]
[1770539679033,23.28743003,88.84,88.801,11.26113444]
[1770539679210,15.51813338,88.849,88.811,11.25986645]
[1770539679526,4.26299759,88.848,88.82,23.28743003]
[1770539679907,23.28743003,88.84,88.792,0.03462225]
[1770539680224,23.28743003,88.81,88.711,112.86422178]
[1770539680403,23.28743003,88.79,88.75,23.28743003]
[1770539680715,4.26299759,88.789,88.75,23.28743003]
[1770539681224,4.26299759,88.819,88.78,23.28743003]
[1770539681420,11.2578305,88.828,88.79,23.28743003]
[1770539681628,11.2578305,88.828,88.744,5.13032502]
[1770539681629,4.26299759,88.828,88.8,23.28743003]
[1770539681829,15.51855874,88.845,88.81,23.28743003]
[1770539682521,23.28743003,88.84,88.8,23.28743003]
[1770539682732,4.26299759,88.859,88.83,23.28743003]
[1770539682907,4.26299759,88.859,88.774,5.13032502]
[1770539683108,4.26299759,88.859,88.83,23.28743003]
[1770539683302,11.25342776,88.862,88.83,23.28743003]
[1770539683529,11.25342776,88.862,88.822,11.25845329]
[1770539683729,23.28743003,88.86,88.82,23.28743003]
[1770539684032,23.28743003,88.86,88.784,5.13032502]
[1770539684033,23.28743003,88.84,88.785,28.15771307]
[1770539684215,4.26299759,88.849,88.81,23.28743003]
[1770539684414,23.28743003,88.84,88.803,11.26076033]
[1770539685121,4.26299759,88.849,88.81,23.28743003]
[1770539685510,23.28743003,88.84,88.8,23.28743003]
[1770539685704,5.13032502,88.891,88.765,95.75846334]
[1770539685705,23.28743003,88.88,88.83,23.28743003]
[1770539685924,4.26299759,88.869,88.773,61.77899318]
[1770539686223,4.26299759,88.859,88.82,23.28743003]
[1770539686422,4.26299759,88.859,88.765,141.0311725]
[1770539686423,4.26299759,88.849,88.81,23.28743003]
[1770539686629,4.26299759,88.849,88.765,84.49276177]
[1770539686630,4.26299759,88.829,88.79,23.28743003]
[1770539687432,67.82,88.898,88.754,5.13032502]
[1770539687433,4.26299759,88.855,88.82,23.28743003]
[1770539687811,4.26299759,88.855,88.791,95.73042312]
[1770539688006,27.55042762,88.85,88.81,23.28743003]
[1770539688223,4.26299759,88.849,88.81,23.28743003]
[1770539688418,4.26299759,88.849,88.82,23.28743003]
[1770539688803,23.28743003,88.83,88.721,56.94611431]
[1770539689008,39.39046074,88.854,88.738,11.26912934]
[1770539689009,4.26299759,88.788,88.738,11.26912934]
[1770539689307,4.26299759,88.799,88.77,23.28743003]
[1770539689522,11.25965816,88.813,88.78,23.28743003]
[1770539689724,4.26299759,88.817,88.78,23.28743003]
[1770539689927,11.25923257,88.816,88.79,23.28743003]
[1770539690131,4.26299759,88.815,88.78,23.28743003]
[1770539690525,4.26299759,88.815,88.761,11.26620925]
[1770539690831,4.26299759,88.82,88.78,23.28743003]
[1770539691020,4.26299759,88.818,88.77,23.28743003]
[1770539691230,4.26299759,88.818,88.761,39.43173239]
[1770539691406,4.26299759,88.818,88.781,11.26367128]
[1770539691610,11.25763797,88.829,88.79,23.28743003]
[1770539692032,11.25763797,88.829,88.781,39.42284948]
[1770539692033,11.25763797,88.829,88.8,23.28743003]
[1770539692536,11.25763797,88.829,88.79,23.28743003]
[1770539692734,11.25608971,88.841,88.81,23.28743003]
[1770539693234,4.26299759,88.849,88.81,23.28743003]
[1770539693535,4.26299759,88.849,88.778,56.31969884]
[1770539693536,4.26299759,88.849,88.82,23.28743003]
[1770539693730,4.26299759,88.839,88.797,11.26163243]
[1770539693926,23.28743003,88.83,88.797,11.26163243]
[1770539694137,23.28743003,88.82,88.784,11.26318785]
[1770539694431,4.26299759,88.889,88.811,39.40953259]
[1770539694623,23.28743003,88.86,88.82,23.28743003]
[1770539694828,4.26299759,88.869,88.82,23.28743003]
[1770539695130,4.26299759,88.859,88.82,23.28743003]
[1770539695336,4.26299759,88.876,88.83,23.28743003]
[1770539695635,4.26299759,88.849,88.795,11.26189537]
[1770539695827,4.26299759,88.829,88.79,23.28743003]
[1770539696134,67.50990463,88.876,88.78,23.28743003]
[1770539696135,4.26299759,88.819,88.78,23.28743003]
[1770539696431,4.26299759,88.809,88.768,11.26531047]
[1770539696615,4.26299759,88.809,88.76,23.28743003]
[1770539696814,4.26299759,88.809,88.721,45.08486059]
[1770539696815,4.26299759,88.809,88.727,5.13032502]
[1770539697031,23.28743003,88.8,88.752,28.16818758]
[1770539697218,4.26299759,88.809,88.77,23.28743003]
[1770539697423,11.26024682,88.808,88.77,23.28743003]
[1770539697824,4.26299759,88.807,88.771,11.26487827]
[1770539698015,23.28743003,88.8,88.771,11.26487827]
[1770539698220,4.26299759,88.799,88.77,11.26497658]
[1770539699643,4.26299759,88.814,88.78,23.28743003]
[1770539699812,27.55042762,88.81,88.77,23.28743003]
[1770539700018,4.26299759,88.809,88.77,23.28743003]
[1770539700214,4.26299759,88.779,88.73,23.28743003]
[1770539700532,4.26299759,88.766,88.73,23.28743003]
[1770539700731,4.26299759,88.812,88.74,23.28743003]
[1770539700948,4.26299759,88.806,88.77,23.28743003]
[1770539701240,11.25526423,88.848,88.8,23.28743003]
[1770539701412,4.26299759,88.872,88.83,23.28743003]
[1770539701614,11.25226451,88.871,88.831,11.25733133]
[1770539701932,4.26299759,88.871,88.831,11.25733133]
[1770539702130,4.26299759,88.898,88.831,39.40065967]
[1770539702435,4.26299759,88.886,88.85,23.28743003]
[1770539702630,4.26299759,88.879,88.84,23.28743003]
[1770539702820,4.26299759,88.879,88.77,28.64829191]
[1770539702821,4.26299759,88.859,88.759,56.68607561]
[1770539703022,4.26299759,88.849,88.81,23.28743003]
[1770539703223,4.26299759,88.862,88.773,5.13032502]
[1770539703527,4.26299759,88.837,88.79,34.5498891]
[1770539703736,4.26299759,88.818,88.77,23.28743003]
[1770539703916,4.26299759,88.824,88.78,23.28743003]
[1770539704115,4.26299759,88.838,88.8,23.28743003]
[1770539704324,4.26299759,88.838,88.791,11.26240272]
[1770539704525,4.26299759,88.829,88.791,11.14846272]
[1770539704733,4.26299759,88.829,88.79,23.28743003]
[1770539705037,4.26299759,88.829,88.791,11.26240272]
[1770539705621,4.25,88.819,88.78,23.28743003]
[1770539705821,11.25771153,88.828,88.753,40.58]
[1770539705822,4.25,88.809,88.777,11.26414292]
[1770539706034,4.25,88.809,88.77,23.28743003]
[1770539706245,39.40199036,88.828,88.753,40.58]
[1770539706246,4.25,88.799,88.76,23.28743003]
[1770539706728,4.25,88.799,88.77,23.28743003]
[1770539706912,4.25,88.819,88.781,11.2636255]
[1770539707113,4.25,88.809,88.77,34.55244951]
[1770539707323,4.25,88.789,88.753,40.58]
[1770539707547,4.25,88.759,88.72,23.28743003]
[1770539707945,4.25,88.758,88.721,11.27128864]
[1770539708456,4.25,88.749,88.714,11.27217357]
[1770539708625,4.25,88.749,88.71,23.48743003]
[1770539708950,4.25,88.749,88.712,11.27238684]
[1770539709446,23.28743003,88.76,88.721,11.27128864]
[1770539709657,27.53743003,88.75,88.71,23.48743003]
[1770539709832,4.25,88.749,88.71,23.48743003]
[1770539710546,4.25,88.749,88.72,23.28743003]
[1770539711160,4.25,88.749,88.72,34.55883948]
[1770539711330,4.25,88.749,88.72,11.27140945]
[1770539711532,4.25,88.806,88.72,39.44994867]
[1770539711752,4.25,88.779,88.74,23.28743003]
[1770539711937,4.25,88.749,88.71,23.48743003]
[1770539712138,23.28743003,88.74,88.71,0.2]
[1770539712436,4.25,88.719,88.658,56.39648988]
[1770539712634,4.25,88.719,88.68,23.28743003]
[1770539712842,4.25,88.719,88.69,23.28743003]
[1770539713229,4.25,88.719,88.658,39.47754291]
[1770539713230,4.25,88.719,88.661,5.13032502]
[1770539713430,4.25,88.719,88.69,23.28743003]
[1770539713744,4.25,88.732,88.69,23.28743003]
[1770539713947,4.25,88.769,88.72,23.28743003]
[1770539714159,4.25,88.769,88.704,5.13032502]
[1770539714458,4.25,88.769,88.73,23.28743003]
[1770539714844,4.25,88.739,88.7,23.28743003]
[1770539715058,4.25,88.739,88.71,23.28743003]
[1770539715266,4.25,88.739,88.681,11.27637261]
[1770539715563,4.25,88.719,88.69,23.28743003]
[1770539715956,4.25,88.719,88.691,11.27510119]
[1770539716151,4.25,88.719,88.69,23.28743003]
[1770539716661,4.25,88.719,88.686,11.27573343]
[1770539716860,4.25,88.717,88.685,11.27584497]
[1770539717164,11.27166978,88.718,88.67,34.56513246]
[1770539717165,4.25,88.709,88.67,34.56513246]
[1770539717347,4.25,88.699,88.663,11.27865228]
[1770539717548,4.25,88.719,88.68,23.28743003]
[1770539717754,4.25,88.717,88.69,23.28743003]
[1770539717944,4.25,88.717,88.68,23.28743003]
[1770539718145,4.25,88.709,88.67,23.28743003]
[1770539718363,4.25,88.689,88.653,11.27990115]
[1770539718545,4.25,88.689,88.65,23.28743003]
[1770539718748,4.25,88.703,88.657,11.27932446]
[1770539719072,4.25,88.689,88.657,11.27932446]
[1770539719269,4.25,88.689,88.651,11.28006558]
[1770539719472,4.25,88.689,88.658,11.27929797]
[1770539719646,4.25,88.689,88.671,11.27764432]
[1770539719975,4.25,88.689,88.629,56.41456687]
[1770539719976,4.25,88.679,88.642,28.2030498]
[1770539720163,4.25,88.679,88.65,23.28743003]
[1770539720369,4.25,88.679,88.651,11.28018797]
[1770539720673,4.25,88.679,88.65,23.28743003]
[1770539720674,4.25,88.679,88.655,11.27955905]
[1770539720846,4.25,88.693,88.67,23.28743003]
[1770539721052,4.25,88.689,88.65,23.28743003]
[1770539721553,4.25,88.679,88.64,34.56891246]
[1770539721751,4.25,88.679,88.614,61.55470371]
[1770539721752,4.25,88.669,88.65,23.28743003]
[1770539721944,4.25,88.682,88.626,28.20838623]
[1770539722146,4.25,88.679,88.65,23.28743003]
[1770539722384,4.25,88.679,88.608,0.44625264]
[1770539722551,4.25,88.659,88.641,11.28146117]
[1770539722746,11.27624546,88.682,88.641,11.28146117]
[1770539722747,23.28743003,88.7,88.65,23.28743003]
[1770539722970,23.28743003,88.7,88.66,23.28743003]
[1770539723273,23.28743003,88.71,88.67,23.28743003]
[1770539723466,39.44106377,88.74,88.641,39.4851141]
[1770539723467,23.28743003,88.7,88.66,23.28743003]
[1770539723853,11.27408426,88.699,88.661,11.27891632]
[1770539724252,11.27281335,88.709,88.67,23.28743003]
[1770539724452,23.28743003,88.71,88.67,23.28743003]
[1770539724749,11.26900235,88.739,88.65,23.28743003]
[1770539724750,3.52178412,88.689,88.65,23.28743003]
[1770539724951,3.52178412,88.679,88.65,23.28743003]
[1770539725145,3.52178412,88.699,88.66,23.28743003]
[1770539725553,3.52178412,88.689,88.656,11.27949212]
[1770539725750,3.52178412,88.679,88.628,28.20768046]
[1770539725949,3.52178412,88.669,88.64,23.28743003]
[1770539726149,3.52178412,88.669,88.65,23.28743003]
[1770539727050,3.52178412,88.669,88.64,23.28743003]
[1770539727250,3.52178412,88.681,88.65,23.28743003]